Workbook

Sheet INGRESO DE DATOS
O2: 24 years | P2: FALSE
O3: Coaseguro (Panamá) | P3: FALSE
O11: Descuento 24 años (por edad) | S11: Type | T11: Nuevo Negocio
O12: age | P12: Discount (%) | Q12: Parameter | T12: Renovación
O13: 24 | P13: 35 | Q13: =1-P13/100 -> 0.65
O14: 25 | P14: 30 | Q14: =1-P14/100 -> 0.7
O15: 26 | P15: 25 | Q15: 0.75
O16: 27 | P16: 20 | Q16: 0.8
O17: 28 | P17: 15 | Q17: 0.85
O18: 29 | P18: 6 | Q18: 0.94
O19: All ages | P19: 0 | Q19: 1 | S19: Type selected | T19: 1
H21: FALSE
O22: NEW BUSINESS DISCOUNT (ENTRADA MANUAL)
O23: Essential
O24: 0 | P24: 0 | Q24: 0 | R24: 0 | S24: 0
O30: Descuento de 24 años: | P30: =IF(P2,_xlfn.SWITCH(C43,O13,Q13,O14,Q14,O15,Q15,O16,Q16,O17,Q17,O18,Q18,Q19),Q19) -> 1
O32: Descuento por variante de coaseguro | P32: =IF(P3=TRUE,0.25,1) -> 1
O35: Descuento si es nuevo negocio:
A37: Nombre del Asegurado Titular: | C37: John Doe | O37: NEW BUSINESS DISCOUNT (MULTIPLICATION FACTOR)
O38: Essential
A39: Número de adultos en la póliza: | C39: 2 | O39: =IF($T$19=1,(O24/100),0) -> 0 | P39: =IF($T$19=1,(P24/100),0) -> 0 | Q39: =IF($T$19=1,(Q24/100),0) -> 0 | R39: =IF($T$19=1,(R24/100),0) -> 0 | S39: =IF($T$19=1,(S24/100),0) -> 0
A41: Número total de dependientes en la póliza: | C41: 2
O42: Descuento combinado 24 años y Nuevo Negocio
A43: Edad del Asegurado Titular: | C43: 32
A45: Edad del/la cónyuge: | C45: 46 | O45: NEW BUSINESS DISCOUNT
O46: Essential
O47: =(1-O39)*$P$30 -> 1 | P47: =(1-P39)*$P$30 -> 1 | Q47: =(1-Q39)*$P$30 -> 1 | R47: 1 | S47: 1

Sheet BUPA ESSENTIAL CARE
K1: RESUMEN DE BENEFICIOS | Z1: RESUMEN DE BENEFICIOS
A5: Cotización de Seguro Médico Internacional Bupa Essential Care Tarifas en US$ | Validas: 1 de enero de 2024
A13: Nombre del Asegurado Titular | B13: =+'INGRESO DE DATOS'!$C$37 -> John Doe
A15: Número de adultos en la póliza | B15: =+'INGRESO DE DATOS'!$C$39 -> 2
A17: Número de Dependientes en la póliza | B17: =+'INGRESO DE DATOS'!$C$41 -> 2 | C17: =IF('INGRESO DE DATOS'!$P$2=TRUE, "Cotización para dependiente de 24 años","") -> 
A19: Edad del Asegurado Titular | B19: =+'INGRESO DE DATOS'!$C$43 -> 32 | F19: Edad del/la conyuge | H19: =+'INGRESO DE DATOS'!$C$45 -> 46
A21: Fecha de la cotización | B21: =NOW() -> 2024-01-10T13:30:10.240
A23: =IF('INGRESO DE DATOS'!P3=TRUE,"Variante con coaseguro fuera del país de residencia: SI","Variante con coaseguro fuera del país de residencia: NO") -> Variante con coaseguro fuera del país de residencia: NO
A25: Deducibles | C25: PLAN 1 | D25: PLAN 2 | E25: PLAN 3 | F25: PLAN 4 | G25: PLAN 5 | H25: PLAN 6
A26: En el país de residencia | C26: 500 | D26: 1000 | E26: 1000 | F26: 1000 | G26: 10000 | H26: 20000
A27: Fuera del país de residencia | C27: 2000 | D27: 5000 | E27: 10000 | F27: 20000 | G27: 10000 | H27: 20000
A29: TARIFAS ANUALES
A30: Prima para Asegurado Titular | C30: =VLOOKUP($B$19,Tablas!$A$10:$H$76,3,TRUE) -> 2234 | D30: =VLOOKUP($B$19,Tablas!$A$10:$H$76,4,TRUE) -> 1993 | E30: =VLOOKUP($B$19,Tablas!$A$10:$H$76,5,TRUE) -> 1813 | F30: =VLOOKUP($B$19,Tablas!$A$10:$H$76,6,TRUE) -> 1622 | G30: =VLOOKUP($B$19,Tablas!$A$10:$H$76,7,TRUE) -> 1496 | H30: =VLOOKUP($B$19,Tablas!$A$10:$H$76,8,TRUE) -> 1182
A31: Prima para conyuge | C31: =IF($B$15=1,0,(VLOOKUP($H$19,Tablas!$A$10:$H$76,3,TRUE))) -> 3169 | D31: =IF($B$15=1,0,(VLOOKUP($H$19,Tablas!$A$10:$H$76,4,TRUE))) -> 2829 | E31: =IF($B$15=1,0,(VLOOKUP($H$19,Tablas!$A$10:$H$76,5,TRUE))) -> 2572 | F31: =IF($B$15=1,0,(VLOOKUP($H$19,Tablas!$A$10:$H$76,6,TRUE))) -> 2301 | G31: =IF($B$15=1,0,(VLOOKUP($H$19,Tablas!$A$10:$H$76,7,TRUE))) -> 2123 | H31: =IF($B$15=1,0,(VLOOKUP($H$19,Tablas!$A$10:$H$76,8,TRUE))) -> 1676
A32: Prima para hijo (s) | C32: =IF($B$17=0,0,(VLOOKUP($B$17,Tablas!$A$77:$H$79,3,TRUE))) -> 1265 | D32: =IF($B$17=0,0,(VLOOKUP($B$17,Tablas!$A$77:$H$79,4,TRUE))) -> 1129 | E32: =IF($B$17=0,0,(VLOOKUP($B$17,Tablas!$A$77:$H$79,5,TRUE))) -> 1026 | F32: =IF($B$17=0,0,(VLOOKUP($B$17,Tablas!$A$77:$H$79,6,TRUE))) -> 918 | G32: =IF($B$17=0,0,(VLOOKUP($B$17,Tablas!$A$77:$H$79,7,TRUE))) -> 848 | H32: =IF($B$17=0,0,(VLOOKUP($B$17,Tablas!$A$77:$H$79,8,TRUE))) -> 669
A33: Total de Prima neta | C33: =SUM(C30:C32) -> 6668 | D33: =SUM(D30:D32) -> 5951 | E33: 5411 | F33: =SUM(F30:F32) -> 4841 | G33: =SUM(G30:G32) -> 4467 | H33: 3527
A34: Ajuste por la variante con coaseguro fuera del país de residencia | C34: =IF('INGRESO DE DATOS'!$P$3,C33*-15%,0) -> 0 | D34: =IF('INGRESO DE DATOS'!$P$3,D33*-15%,0) -> 0 | E34: =IF('INGRESO DE DATOS'!$P$3,E33*-15%,0) -> 0 | F34: =IF('INGRESO DE DATOS'!$P$3,F33*-15%,0) -> 0
A35: Tarifa administrativa anual | C35: 75 | D35: 75 | E35: 75 | F35: 75 | G35: 75 | H35: 75
A36: VAT (5%) : | C36: =(C33+C34)*5% -> 333.4 | D36: =(D33+D34)*5% -> 297.55 | E36: 270.55 | F36: =(F33+F34)*5% -> 242.05 | G36: =(G33+G34)*5% -> 223.35 | H36: =(H33+H34)*5% -> 176.35
A37: ITBMS (7%) | C37: =+C35*7% -> 5.25 | D37: =+D35*7% -> 5.25 | E37: 5.25 | F37: =+F35*7% -> 5.25 | G37: =+G35*7% -> 5.25 | H37: 5.25
A38: TOTAL ANUAL | C38: =SUM(C33:C37) -> 7081.65 | D38: =SUM(D33:D37) -> 6328.8 | E38: 5761.8 | F38: =SUM(F33:F37) -> 5163.3 | G38: 4770.6 | H38: 3783.6
A40: TARIFAS SEMESTRALES
A41: Prima para Asegurado Titular | C41: =VLOOKUP($B$19,Tablas!$A$158:$H$224,3,TRUE) -> 1184.02 | D41: =VLOOKUP($B$19,Tablas!$A$158:$H$224,4,TRUE) -> 1056.29 | E41: =VLOOKUP($B$19,Tablas!$A$158:$H$224,5,TRUE) -> 960.89 | F41: =VLOOKUP($B$19,Tablas!$A$158:$H$224,6,TRUE) -> 859.66 | G41: =VLOOKUP($B$19,Tablas!$A$158:$H$224,7,TRUE) -> 792.88 | H41: =VLOOKUP($B$19,Tablas!$A$158:$H$224,8,TRUE) -> 626.46
A42: Prima para conyuge | C42: =IF($B$15=1,0,(VLOOKUP($H$19,Tablas!$A$158:$H$224,3,TRUE))) -> 1679.57 | D42: =IF($B$15=1,0,(VLOOKUP($H$19,Tablas!$A$158:$H$224,4,TRUE))) -> 1499.37 | E42: =IF($B$15=1,0,(VLOOKUP($H$19,Tablas!$A$158:$H$224,5,TRUE))) -> 1363.16 | F42: =IF($B$15=1,0,(VLOOKUP($H$19,Tablas!$A$158:$H$224,6,TRUE))) -> 1219.53 | G42: =IF($B$15=1,0,(VLOOKUP($H$19,Tablas!$A$158:$H$224,7,TRUE))) -> 1125.19 | H42: =IF($B$15=1,0,(VLOOKUP($H$19,Tablas!$A$158:$H$224,8,TRUE))) -> 888.28
A43: Prima para hijo (s) | C43: =IF($B$17=0,0,(VLOOKUP($B$17,Tablas!$A$225:$H$227,3,TRUE))) -> 670.45 | D43: =IF($B$17=0,0,(VLOOKUP($B$17,Tablas!$A$225:$H$227,4,TRUE))) -> 598.37 | E43: =IF($B$17=0,0,(VLOOKUP($B$17,Tablas!$A$225:$H$227,5,TRUE))) -> 543.78 | F43: =IF($B$17=0,0,(VLOOKUP($B$17,Tablas!$A$225:$H$227,6,TRUE))) -> 486.54 | G43: =IF($B$17=0,0,(VLOOKUP($B$17,Tablas!$A$225:$H$227,7,TRUE))) -> 449.44 | H43: =IF($B$17=0,0,(VLOOKUP($B$17,Tablas!$A$225:$H$227,8,TRUE))) -> 354.57
A44: Total de Prima neta | C44: =SUM(C41:C43) -> 3534.04 | D44: =SUM(D41:D43) -> 3154.03 | E44: 2867.83 | F44: =SUM(F41:F43) -> 2565.73 | G44: =SUM(G41:G43) -> 2367.51 | H44: 1869.31
A45: Ajuste por la variante con coaseguro fuera del país de residencia | C45: =IF('INGRESO DE DATOS'!$P$3,C44*-15%,0) -> 0 | D45: =IF('INGRESO DE DATOS'!$P$3,D44*-15%,0) -> 0 | E45: =IF('INGRESO DE DATOS'!$P$3,E44*-15%,0) -> 0 | F45: =IF('INGRESO DE DATOS'!$P$3,F44*-15%,0) -> 0
A46: Tarifa administrativa anual | C46: 75 | D46: 75 | E46: 75 | F46: 75 | G46: 75 | H46: 75
A47: VAT (5%) : | C47: =(C30+C31+C32+C34)*5%/2 -> 166.7 | D47: =(D30+D31+D32+D34)*5%/2 -> 148.775 | E47: 135.275 | F47: =(F30+F31+F32+F34)*5%/2 -> 121.025 | G47: =(G30+G31+G32+G34)*5%/2 -> 111.675 | H47: 88.175
A48: ITBMS (7%) | C48: =+C46*7%+ ((C30+C31+C32+C34)*0.06*0.07)/2 -> 19.2528 | D48: =+D46*7%+ ((D30+D31+D32+D34)*0.06*0.07)/2 -> 17.7471 | E48: 16.6131 | F48: =+F46*7%+ ((F30+F31+F32+F34)*0.06*0.07)/2 -> 15.4161 | G48: =+G46*7%+ ((G30+G31+G32+G34)*0.06*0.07)/2 -> 14.6307 | H48: 12.6567
A49: TOTAL de primera cuota | C49: =SUM(C44:C48) -> 3794.9928 | D49: =SUM(D44:D48) -> 3395.5521 | E49: 3094.7181 | F49: =SUM(F44:F48) -> 2777.1711 | G49: =SUM(G44:G48) -> 2568.8157 | H49: 2045.1417
A50: Costo de segunda cuota | C50: =((C44+C45)+ C47)+ ((C30+C31+C32+C34)*0.06*0.07)/2 -> 3714.7428 | D50: =((D44+D45)+ D47)+ ((D30+D31+D32+D34)*0.06*0.07)/2 -> 3315.3021 | E50: 3014.4681 | F50: =((F44+F45)+ F47)+ ((F30+F31+F32+F34)*0.06*0.07)/2 -> 2696.9211 | G50: =((G44+G45)+ G47)+ ((G30+G31+G32+G34)*0.06*0.07)/2 -> 2488.5657 | H50: 1964.8917
A51: TOTAL ANUAL | C51: =C49+C50 -> 7509.7356 | D51: =D49+D50 -> 6710.8542 | E51: 6109.1862 | F51: =F49+F50 -> 5474.0922 | G51: 5057.3814 | H51: 4010.0334
A53: TARIFAS TRIMESTRALES
A54: Prima para Asegurado Titular | C54: =VLOOKUP($B$19,Tablas!$A$233:$H$299,3,TRUE) -> 614.35 | D54: =VLOOKUP($B$19,Tablas!$A$233:$H$299,4,TRUE) -> 548.075 | E54: =VLOOKUP($B$19,Tablas!$A$233:$H$299,5,TRUE) -> 498.575 | F54: =VLOOKUP($B$19,Tablas!$A$233:$H$299,6,TRUE) -> 446.05 | G54: =VLOOKUP($B$19,Tablas!$A$233:$H$299,7,TRUE) -> 411.4 | H54: =VLOOKUP($B$19,Tablas!$A$233:$H$299,8,TRUE) -> 325.05
A55: Prima para conyuge | C55: =IF($B$15=1,0,(VLOOKUP($H$19,Tablas!$A$233:$H$299,3,TRUE))) -> 871.475 | D55: =IF($B$15=1,0,(VLOOKUP($H$19,Tablas!$A$233:$H$299,4,TRUE))) -> 777.975 | E55: =IF($B$15=1,0,(VLOOKUP($H$19,Tablas!$A$233:$H$299,5,TRUE))) -> 707.3 | F55: =IF($B$15=1,0,(VLOOKUP($H$19,Tablas!$A$233:$H$299,6,TRUE))) -> 632.775 | G55: =IF($B$15=1,0,(VLOOKUP($H$19,Tablas!$A$233:$H$299,7,TRUE))) -> 583.825 | H55: =IF($B$15=1,0,(VLOOKUP($H$19,Tablas!$A$233:$H$299,8,TRUE))) -> 460.9
A56: Prima para hijo (s) | C56: =IF($B$17=0,0,(VLOOKUP($B$17,Tablas!$A$300:$H$302,3,TRUE))) -> 347.875 | D56: =IF($B$17=0,0,(VLOOKUP($B$17,Tablas!$A$300:$H$302,4,TRUE))) -> 310.475 | E56: =IF($B$17=0,0,(VLOOKUP($B$17,Tablas!$A$300:$H$302,5,TRUE))) -> 282.15 | F56: =IF($B$17=0,0,(VLOOKUP($B$17,Tablas!$A$300:$H$302,6,TRUE))) -> 252.45 | G56: =IF($B$17=0,0,(VLOOKUP($B$17,Tablas!$A$300:$H$302,7,TRUE))) -> 233.2 | H56: =IF($B$17=0,0,(VLOOKUP($B$17,Tablas!$A$300:$H$302,8,TRUE))) -> 183.975
A57: Total de Prima neta | C57: =SUM(C54:C56) -> 1833.7 | D57: =SUM(D54:D56) -> 1636.525 | E57: 1488.025 | F57: =SUM(F54:F56) -> 1331.275 | G57: =SUM(G54:G56) -> 1228.425 | H57: 969.925
A58: Ajuste por la variante con coaseguro fuera del país de residencia | C58: =IF('INGRESO DE DATOS'!$P$3,C57*-15%,0) -> 0 | D58: =IF('INGRESO DE DATOS'!$P$3,D57*-15%,0) -> 0 | E58: =IF('INGRESO DE DATOS'!$P$3,E57*-15%,0) -> 0 | F58: =IF('INGRESO DE DATOS'!$P$3,F57*-15%,0) -> 0
A59: Tarifa administrativa anual | C59: 75 | D59: 75 | E59: 75 | F59: 75 | G59: 75 | H59: 75
A60: VAT (5%) : | C60: =(C30+C31+C32+C34)*5%/4 -> 83.35 | D60: =(D30+D31+D32+D34)*5%/4 -> 74.3875 | E60: 67.6375 | F60: =(F30+F31+F32+F34)*5%/4 -> 60.5125 | G60: =(G30+G31+G32+G34)*5%/4 -> 55.8375 | H60: 44.0875
A61: ITBMS (7%) | C61: =+C59*7% + ((C30+C31+C32+C34)*0.1*0.07)/4 -> 16.919 | D61: =+D59*7% + ((D30+D31+D32+D34)*0.1*0.07)/4 -> 15.66425 | E61: 14.71925 | F61: =+F59*7% + ((F30+F31+F32+F34)*0.1*0.07)/4 -> 13.72175 | G61: =+G59*7% + ((G30+G31+G32+G34)*0.1*0.07)/4 -> 13.06725 | H61: 11.42225
A62: TOTAL de primera cuota | C62: =SUM(C57:C61) -> 2008.969 | D62: =SUM(D57:D61) -> 1801.57675 | E62: 1645.38175 | F62: =SUM(F57:F61) -> 1480.50925 | G62: =SUM(G57:G61) -> 1372.32975 | H62: 1100.43475
A63: Costo de tarifa trimestral 2 a 4 | C63: =((C57+C58)+ C60)+((C30+C31+C32+C34)*0.1*0.07)/4 -> 1928.719 | D63: =((D57+D58)+ D60)+((D30+D31+D32+D34)*0.1*0.07)/4 -> 1721.32675 | E63: 1565.13175 | F63: =((F57+F58)+ F60)+((F30+F31+F32+F34)*0.1*0.07)/4 -> 1400.25925 | G63: =((G57+G58)+ G60)+((G30+G31+G32+G34)*0.1*0.07)/4 -> 1292.07975 | H63: 1020.18475
A64: TOTAL ANUAL | C64: =C62+(C63*3) -> 7795.126 | D64: =D62+(D63*3) -> 6965.557 | E64: 6340.777 | F64: =F62+(F63*3) -> 5681.287 | G64: 5248.569 | H64: 4160.989
A66: TARIFAS MENSUALES
A67: Prima para Asegurado Titular | C67: =VLOOKUP($B$19,Tablas!$A$84:$H$150,3,TRUE) -> 208.5066667 | D67: =VLOOKUP($B$19,Tablas!$A$84:$H$150,4,TRUE) -> 186.0133333 | E67: =VLOOKUP($B$19,Tablas!$A$84:$H$150,5,TRUE) -> 169.2133333 | F67: =VLOOKUP($B$19,Tablas!$A$84:$H$150,6,TRUE) -> 151.3866667 | G67: =VLOOKUP($B$19,Tablas!$A$84:$H$150,7,TRUE) -> 139.6266667 | H67: =VLOOKUP($B$19,Tablas!$A$84:$H$150,8,TRUE) -> 110.32
A68: Prima para conyuge | C68: =IF($B$15=1,0,(VLOOKUP($H$19,Tablas!$A$84:$H$150,3,TRUE))) -> 295.7733333 | D68: =IF($B$15=1,0,(VLOOKUP($H$19,Tablas!$A$84:$H$150,4,TRUE))) -> 264.04 | E68: =IF($B$15=1,0,(VLOOKUP($H$19,Tablas!$A$84:$H$150,5,TRUE))) -> 240.0533333 | F68: =IF($B$15=1,0,(VLOOKUP($H$19,Tablas!$A$84:$H$150,6,TRUE))) -> 214.76 | G68: =IF($B$15=1,0,(VLOOKUP($H$19,Tablas!$A$84:$H$150,7,TRUE))) -> 198.1466667 | H68: =IF($B$15=1,0,(VLOOKUP($H$19,Tablas!$A$84:$H$150,8,TRUE))) -> 156.4266667
A69: Prima para hijo (s) | C69: =IF($B$17=0,0,(VLOOKUP($B$17,Tablas!$A$151:$H$153,3,TRUE))) -> 118.0666667 | D69: =IF($B$17=0,0,(VLOOKUP($B$17,Tablas!$A$151:$H$153,4,TRUE))) -> 105.3733333 | E69: =IF($B$17=0,0,(VLOOKUP($B$17,Tablas!$A$151:$H$153,5,TRUE))) -> 95.76 | F69: =IF($B$17=0,0,(VLOOKUP($B$17,Tablas!$A$151:$H$153,6,TRUE))) -> 85.68 | G69: =IF($B$17=0,0,(VLOOKUP($B$17,Tablas!$A$151:$H$153,7,TRUE))) -> 79.14666667 | H69: =IF($B$17=0,0,(VLOOKUP($B$17,Tablas!$A$151:$H$153,8,TRUE))) -> 62.44
A70: Total de Prima neta | C70: =SUM(C67:C69) -> 622.3466667 | D70: =SUM(D67:D69) -> 555.4266667 | E70: 505.0266667 | F70: =SUM(F67:F69) -> 451.8266667 | G70: =SUM(G67:G69) -> 416.92 | H70: 329.1866667
A71: Ajuste por la variante con coaseguro fuera del país de residencia | C71: =IF('INGRESO DE DATOS'!$P$3,C70*-15%,0) -> 0 | D71: =IF('INGRESO DE DATOS'!$P$3,D70*-15%,0) -> 0 | E71: =IF('INGRESO DE DATOS'!$P$3,E70*-15%,0) -> 0 | F71: =IF('INGRESO DE DATOS'!$P$3,F70*-15%,0) -> 0
A72: Tarifa administrativa anual | C72: 75 | D72: 75 | E72: 75 | F72: 75 | G72: 75 | H72: 75
A73: VAT (5%) : | C73: =(C30+C31+C32+C34)*5%/12 -> 27.78333333 | D73: =(D30+D31+D32+D34)*5%/12 -> 24.79583333 | E73: 22.54583333 | F73: =(F30+F31+F32+F34)*5%/12 -> 20.17083333 | G73: =(G30+G31+G32+G34)*5%/12 -> 18.6125 | H73: 14.69583333
A74: ITBMS (7%) | C74: =C72*7% + ((C30+C31+C32+C34)*0.12*0.07)/12 -> 9.9176 | D74: =D72*7% + ((D30+D31+D32+D34)*0.12*0.07)/12 -> 9.4157 | E74: 9.0377 | F74: =F72*7% + ((F30+F31+F32+F34)*0.12*0.07)/12 -> 8.6387 | G74: =G72*7% + ((G30+G31+G32+G34)*0.12*0.07)/12 -> 8.3769 | H74: 7.7189
A75: TOTAL de primera cuota | C75: =SUM(C70:C74) -> 735.0476 | D75: =SUM(D70:D74) -> 664.6382 | E75: 611.6102 | F75: =SUM(F70:F74) -> 555.6362 | G75: =SUM(G70:G74) -> 518.9094 | H75: 426.6014
A76: Costo de Tarifa mensual de 2 a 12 | C76: =((C70 + C71)+C73)+((C30+C31+C32+C34)*0.12*0.07)/12 -> 654.7976 | D76: =((D70 + D71)+D73)+((D30+D31+D32+D34)*0.12*0.07)/12 -> 584.3882 | E76: 531.3602 | F76: =((F70 + F71)+F73)+((F30+F31+F32+F34)*0.12*0.07)/12 -> 475.3862 | G76: =((G70 + G71)+G73)+((G30+G31+G32+G34)*0.12*0.07)/12 -> 438.6594 | H76: 346.3514
A77: TOTAL ANUAL | C77: =C75+(C76*11) -> 7937.8212 | D77: =D75+(D76*11) -> 7092.9084 | E77: 6456.5724 | F77: =F75+(F76*11) -> 5784.8844 | G77: 5344.1628 | H77: 4236.4668
A79: Este presupuesto solamente tiene carácter informativo y en ningún momento expresa compromiso legal para suministrarle cobertura de seguro. La emisión de una póliza de seguro Bupa está sujeta a todas las evaluaciones de riesgo por parte de Bupa y a la recepción de todos los pagos de prima requeridos.

Sheet RESUMEN DE TARIFAS
A5: Cotización de Seguro Médico Internacional Bupa Essential Care Resumen de Tarifas Tarifas en US$ | Validas: 1 de enero de 2024
A13: Nombre del Asegurado Titular | B13: =+'INGRESO DE DATOS'!$C$37 -> John Doe
A15: Número de adultos en la póliza | B15: =+'INGRESO DE DATOS'!$C$39 -> 2
A17: Número de Dependientes en la póliza | B17: =+'INGRESO DE DATOS'!$C$41 -> 2 | C17: =IF('INGRESO DE DATOS'!$P$2=TRUE, "Cotización para dependiente de 24 años","") -> 
A19: Edad del Asegurado Titular | B19: =+'INGRESO DE DATOS'!$C$43 -> 32 | E19: Edad del/la conyuge | F19: =+'INGRESO DE DATOS'!$C$45 -> 46
A21: Fecha de la cotización | B21: =NOW() -> 2024-01-10T13:30:10.240
A23: BUPA ESSENTIAL CARE
A24: DEDUCIBLES | B24: PLAN 1 | C24: PLAN 2 | D24: PLAN 3 | E24: PLAN 4 | F24: PLAN 5 | G24: PLAN 5
A25: En el país de residencia | B25: 250 | C25: 1000 | D25: 1000 | E25: 1000 | F25: 10000 | G25: 20000
A26: Fuera del país de residencia | B26: 2000 | C26: 5000 | D26: 10000 | E26: 20000 | F26: 10000 | G26: 20000
B27: TARIFAS ANUALES
B28: ='BUPA ESSENTIAL CARE'!C38 -> 7081.65 | C28: ='BUPA ESSENTIAL CARE'!D38 -> 6328.8 | D28: ='BUPA ESSENTIAL CARE'!E38 -> 5761.8 | E28: ='BUPA ESSENTIAL CARE'!F38 -> 5163.3 | F28: ='BUPA ESSENTIAL CARE'!G38 -> 4770.6 | G28: ='BUPA ESSENTIAL CARE'!H38 -> 3783.6
B29: TARIFAS SEMESTRALES
B30: ='BUPA ESSENTIAL CARE'!C49 -> 3794.9928 | C30: ='BUPA ESSENTIAL CARE'!D49 -> 3395.5521 | D30: ='BUPA ESSENTIAL CARE'!E49 -> 3094.7181 | E30: ='BUPA ESSENTIAL CARE'!F49 -> 2777.1711 | F30: ='BUPA ESSENTIAL CARE'!G49 -> 2568.8157 | G30: ='BUPA ESSENTIAL CARE'!H49 -> 2045.1417
B31: ='BUPA ESSENTIAL CARE'!C50 -> 3714.7428 | C31: ='BUPA ESSENTIAL CARE'!D50 -> 3315.3021 | D31: ='BUPA ESSENTIAL CARE'!E50 -> 3014.4681 | E31: ='BUPA ESSENTIAL CARE'!F50 -> 2696.9211 | F31: ='BUPA ESSENTIAL CARE'!G50 -> 2488.5657 | G31: ='BUPA ESSENTIAL CARE'!H50 -> 1964.8917
B32: ='BUPA ESSENTIAL CARE'!C51 -> 7509.7356 | C32: ='BUPA ESSENTIAL CARE'!D51 -> 6710.8542 | D32: ='BUPA ESSENTIAL CARE'!E51 -> 6109.1862 | E32: ='BUPA ESSENTIAL CARE'!F51 -> 5474.0922 | F32: ='BUPA ESSENTIAL CARE'!G51 -> 5057.3814 | G32: ='BUPA ESSENTIAL CARE'!H51 -> 4010.0334
B33: TARIFAS TRIMESTRALES
B34: ='BUPA ESSENTIAL CARE'!C62 -> 2008.969 | C34: ='BUPA ESSENTIAL CARE'!D62 -> 1801.57675 | D34: ='BUPA ESSENTIAL CARE'!E62 -> 1645.38175 | E34: ='BUPA ESSENTIAL CARE'!F62 -> 1480.50925 | F34: ='BUPA ESSENTIAL CARE'!G62 -> 1372.32975 | G34: ='BUPA ESSENTIAL CARE'!H62 -> 1100.43475
B35: ='BUPA ESSENTIAL CARE'!C63 -> 1928.719 | C35: ='BUPA ESSENTIAL CARE'!D63 -> 1721.32675 | D35: ='BUPA ESSENTIAL CARE'!E63 -> 1565.13175 | E35: ='BUPA ESSENTIAL CARE'!F63 -> 1400.25925 | F35: ='BUPA ESSENTIAL CARE'!G63 -> 1292.07975 | G35: ='BUPA ESSENTIAL CARE'!H63 -> 1020.18475
B36: ='BUPA ESSENTIAL CARE'!C64 -> 7795.126 | C36: ='BUPA ESSENTIAL CARE'!D64 -> 6965.557 | D36: ='BUPA ESSENTIAL CARE'!E64 -> 6340.777 | E36: ='BUPA ESSENTIAL CARE'!F64 -> 5681.287 | F36: ='BUPA ESSENTIAL CARE'!G64 -> 5248.569 | G36: ='BUPA ESSENTIAL CARE'!H64 -> 4160.989
B37: TARIFAS MENSUALES
B38: ='BUPA ESSENTIAL CARE'!C75 -> 735.0476 | C38: ='BUPA ESSENTIAL CARE'!D75 -> 664.6382 | D38: ='BUPA ESSENTIAL CARE'!E75 -> 611.6102 | E38: ='BUPA ESSENTIAL CARE'!F75 -> 555.6362 | F38: ='BUPA ESSENTIAL CARE'!G75 -> 518.9094 | G38: ='BUPA ESSENTIAL CARE'!H75 -> 426.6014
B39: ='BUPA ESSENTIAL CARE'!C76 -> 654.7976 | C39: ='BUPA ESSENTIAL CARE'!D76 -> 584.3882 | D39: ='BUPA ESSENTIAL CARE'!E76 -> 531.3602 | E39: ='BUPA ESSENTIAL CARE'!F76 -> 475.3862 | F39: ='BUPA ESSENTIAL CARE'!G76 -> 438.6594 | G39: ='BUPA ESSENTIAL CARE'!H76 -> 346.3514
B40: ='BUPA ESSENTIAL CARE'!C77 -> 7937.8212 | C40: ='BUPA ESSENTIAL CARE'!D77 -> 7092.9084 | D40: ='BUPA ESSENTIAL CARE'!E77 -> 6456.5724 | E40: ='BUPA ESSENTIAL CARE'!F77 -> 5784.8844 | F40: ='BUPA ESSENTIAL CARE'!G77 -> 5344.1628 | G40: ='BUPA ESSENTIAL CARE'!H77 -> 4236.4668
A42: Este presupuesto solamente tiene carácter informativo y en ningún momento expresa compromiso legal para suministrarle cobertura de seguro. La emisión de una póliza de seguro Bupa está sujeta a todas las evaluaciones de riesgo por parte de Bupa y a la recepción de todos los pagos de prima requeridos. Una tarifa administrativa de US$75 se cargará automáticamente al primer pago. *Basado en un modo de pago anual

Sheet Tablas (hidden)
I2: FACTOR MENSUAL: | K2: 0.09333333333 | M2: Descuento de 24 años | N2: ='INGRESO DE DATOS'!P30 -> 1 | O2: Essential
I3: FACTOR TRIMESTRAL: | K3: 0.275 | M3: Descuento de producto (%) | O3: ='INGRESO DE DATOS'!O39 -> 0
I4: FACTOR SEMIANUAL: | K4: 0.53 | M4: Factor para el descuento combinado | O4: ='INGRESO DE DATOS'!O47 -> 1
A6: BUPA ESSENTIAL CARE
A7: TARIFAS ANUALES
A9: EDAD | C9: 500 | D9: 1000 | E9: 1000 | F9: 1000 | G9: 10000 | H9: 20000 | J9: TARIFAS BASE | R9: TARIFAS BASE CON DESCUENTO
A10: 18 | C10: =R10 -> 1662 | D10: 1483 | E10: 1348 | F10: 1207 | G10: 1113 | H10: 879 | J10: 1662 | K10: 1483 | L10: 1348 | M10: 1207 | N10: 1113 | O10: 879 | R10: =J10*$O$4 -> 1662 | S10: =K10*$O$4 -> 1483 | T10: 1348 | U10: 1207 | V10: =N10*$O$4 -> 1113 | W10: =O10*$O$4 -> 879
A11: 19 | C11: =R11 -> 1689 | D11: =S11 -> 1507 | E11: =T11 -> 1370 | F11: =U11 -> 1226 | G11: =V11 -> 1131 | H11: =W11 -> 893 | J11: 1689 | K11: 1507 | L11: 1370 | M11: 1226 | N11: 1131 | O11: 893 | R11: =J11*$O$4 -> 1689 | S11: =K11*$O$4 -> 1507 | T11: =L11*$O$4 -> 1370 | U11: =M11*$O$4 -> 1226 | V11: =N11*$O$4 -> 1131 | W11: =O11*$O$4 -> 893
A12: 20 | C12: 1715 | D12: 1531 | E12: 1392 | F12: 1246 | G12: 1150 | H12: 907 | J12: 1715 | K12: 1531 | L12: 1392 | M12: 1246 | N12: 1150 | O12: 907 | R12: 1715 | S12: 1531 | T12: 1392 | U12: 1246 | V12: 1150 | W12: 907
A13: 21 | C13: 1742 | D13: 1555 | E13: 1414 | F13: 1265 | G13: 1167 | H13: 922 | J13: 1742 | K13: 1555 | L13: 1414 | M13: 1265 | N13: 1167 | O13: 922 | R13: 1742 | S13: 1555 | T13: 1414 | U13: 1265 | V13: 1167 | W13: 922
A14: 22 | C14: 1768 | D14: 1578 | E14: 1436 | F14: 1285 | G14: 1185 | H14: 936 | J14: 1768 | K14: 1578 | L14: 1436 | M14: 1285 | N14: 1185 | O14: 936 | R14: 1768 | S14: 1578 | T14: 1436 | U14: 1285 | V14: 1185 | W14: 936
A15: 23 | C15: 1796 | D15: 1602 | E15: 1457 | F15: 1304 | G15: 1203 | H15: 950 | J15: 1796 | K15: 1602 | L15: 1457 | M15: 1304 | N15: 1203 | O15: 950 | R15: 1796 | S15: 1602 | T15: 1457 | U15: 1304 | V15: 1203 | W15: 950
A16: 24 | C16: 1822 | D16: 1626 | E16: 1479 | F16: 1323 | G16: 1221 | H16: 963 | J16: 1822 | K16: 1626 | L16: 1479 | M16: 1323 | N16: 1221 | O16: 963 | R16: 1822 | S16: 1626 | T16: 1479 | U16: 1323 | V16: 1221 | W16: 963
A17: 25 | C17: 1849 | D17: 1651 | E17: 1501 | F17: 1343 | G17: 1238 | H17: 977 | J17: 1849 | K17: 1651 | L17: 1501 | M17: 1343 | N17: 1238 | O17: 977 | R17: 1849 | S17: 1651 | T17: 1501 | U17: 1343 | V17: 1238 | W17: 977
A18: 26 | C18: 1908 | D18: 1703 | E18: 1548 | F18: 1385 | G18: 1278 | H18: 1008 | J18: 1908 | K18: 1703 | L18: 1548 | M18: 1385 | N18: 1278 | O18: 1008 | R18: 1908 | S18: 1703 | T18: 1548 | U18: 1385 | V18: 1278 | W18: 1008
A19: 27 | C19: 1966 | D19: 1754 | E19: 1596 | F19: 1427 | G19: 1318 | H19: 1039 | J19: 1966 | K19: 1754 | L19: 1596 | M19: 1427 | N19: 1318 | O19: 1039 | R19: 1966 | S19: 1754 | T19: 1596 | U19: 1427 | V19: 1318 | W19: 1039
A20: 28 | C20: 2025 | D20: 1807 | E20: 1643 | F20: 1470 | G20: 1356 | H20: 1070 | J20: 2025 | K20: 1807 | L20: 1643 | M20: 1470 | N20: 1356 | O20: 1070 | R20: 2025 | S20: 1807 | T20: 1643 | U20: 1470 | V20: 1356 | W20: 1070
A21: 29 | C21: 2083 | D21: 1859 | E21: 1691 | F21: 1512 | G21: 1396 | H21: 1102 | J21: 2083 | K21: 1859 | L21: 1691 | M21: 1512 | N21: 1396 | O21: 1102 | R21: 2083 | S21: 1859 | T21: 1691 | U21: 1512 | V21: 1396 | W21: 1102
A22: 30 | C22: 2141 | D22: 1911 | E22: 1738 | F22: 1555 | G22: 1435 | H22: 1133 | J22: 2141 | K22: 1911 | L22: 1738 | M22: 1555 | N22: 1435 | O22: 1133 | R22: 2141 | S22: 1911 | T22: 1738 | U22: 1555 | V22: 1435 | W22: 1133
A23: 31 | C23: 2188 | D23: 1952 | E23: 1775 | F23: 1588 | G23: 1466 | H23: 1157 | J23: 2188 | K23: 1952 | L23: 1775 | M23: 1588 | N23: 1466 | O23: 1157 | R23: 2188 | S23: 1952 | T23: 1775 | U23: 1588 | V23: 1466 | W23: 1157
A24: 32 | C24: 2234 | D24: 1993 | E24: 1813 | F24: 1622 | G24: 1496 | H24: 1182 | J24: 2234 | K24: 1993 | L24: 1813 | M24: 1622 | N24: 1496 | O24: 1182 | R24: 2234 | S24: 1993 | T24: 1813 | U24: 1622 | V24: 1496 | W24: 1182
A25: 33 | C25: 2280 | D25: 2034 | E25: 1851 | F25: 1655 | G25: 1527 | H25: 1205 | J25: 2280 | K25: 2034 | L25: 1851 | M25: 1655 | N25: 1527 | O25: 1205 | R25: 2280 | S25: 2034 | T25: 1851 | U25: 1655 | V25: 1527 | W25: 1205
A26: 34 | C26: 2325 | D26: 2075 | E26: 1887 | F26: 1689 | G26: 1558 | H26: 1230 | J26: 2325 | K26: 2075 | L26: 1887 | M26: 1689 | N26: 1558 | O26: 1230 | R26: 2325 | S26: 2075 | T26: 1887 | U26: 1689 | V26: 1558 | W26: 1230
A27: 35 | C27: 2371 | D27: 2116 | E27: 1925 | F27: 1722 | G27: 1589 | H27: 1255 | J27: 2371 | K27: 2116 | L27: 1925 | M27: 1722 | N27: 1589 | O27: 1255 | R27: 2371 | S27: 2116 | T27: 1925 | U27: 1722 | V27: 1589 | W27: 1255
A28: 36 | C28: 2433 | D28: 2171 | E28: 1975 | F28: 1766 | G28: 1630 | H28: 1287 | J28: 2433 | K28: 2171 | L28: 1975 | M28: 1766 | N28: 1630 | O28: 1287 | R28: 2433 | S28: 2171 | T28: 1975 | U28: 1766 | V28: 1630 | W28: 1287
A29: 37 | C29: 2494 | D29: 2226 | E29: 2024 | F29: 1811 | G29: 1672 | H29: 1319 | J29: 2494 | K29: 2226 | L29: 2024 | M29: 1811 | N29: 1672 | O29: 1319 | R29: 2494 | S29: 2226 | T29: 2024 | U29: 1811 | V29: 1672 | W29: 1319
A30: 38 | C30: 2557 | D30: 2281 | E30: 2074 | F30: 1856 | G30: 1712 | H30: 1352 | J30: 2557 | K30: 2281 | L30: 2074 | M30: 1856 | N30: 1712 | O30: 1352 | R30: 2557 | S30: 2281 | T30: 2074 | U30: 1856 | V30: 1712 | W30: 1352
A31: 39 | C31: 2618 | D31: 2337 | E31: 2124 | F31: 1900 | G31: 1754 | H31: 1384 | J31: 2618 | K31: 2337 | L31: 2124 | M31: 1900 | N31: 1754 | O31: 1384 | R31: 2618 | S31: 2337 | T31: 2124 | U31: 1900 | V31: 1754 | W31: 1384
A32: 40 | C32: 2679 | D32: 2391 | E32: 2175 | F32: 1944 | G32: 1795 | H32: 1416 | J32: 2679 | K32: 2391 | L32: 2175 | M32: 1944 | N32: 1795 | O32: 1416 | R32: 2679 | S32: 2391 | T32: 2175 | U32: 1944 | V32: 1795 | W32: 1416
A33: 41 | C33: 2765 | D33: 2468 | E33: 2244 | F33: 2007 | G33: 1853 | H33: 1462 | J33: 2765 | K33: 2468 | L33: 2244 | M33: 2007 | N33: 1853 | O33: 1462 | R33: 2765 | S33: 2468 | T33: 2244 | U33: 2007 | V33: 1853 | W33: 1462
A34: 42 | C34: 2852 | D34: 2545 | E34: 2314 | F34: 2070 | G34: 1910 | H34: 1508 | J34: 2852 | K34: 2545 | L34: 2314 | M34: 2070 | N34: 1910 | O34: 1508 | R34: 2852 | S34: 2545 | T34: 2314 | U34: 2070 | V34: 1910 | W34: 1508
A35: 43 | C35: 2938 | D35: 2622 | E35: 2384 | F35: 2132 | G35: 1968 | H35: 1553 | J35: 2938 | K35: 2622 | L35: 2384 | M35: 2132 | N35: 1968 | O35: 1553 | R35: 2938 | S35: 2622 | T35: 2384 | U35: 2132 | V35: 1968 | W35: 1553
A36: 44 | C36: 3024 | D36: 2698 | E36: 2454 | F36: 2195 | G36: 2026 | H36: 1599 | J36: 3024 | K36: 2698 | L36: 2454 | M36: 2195 | N36: 2026 | O36: 1599 | R36: 3024 | S36: 2698 | T36: 2454 | U36: 2195 | V36: 2026 | W36: 1599
A37: 45 | C37: 3110 | D37: 2776 | E37: 2524 | F37: 2258 | G37: 2084 | H37: 1645 | J37: 3110 | K37: 2776 | L37: 2524 | M37: 2258 | N37: 2084 | O37: 1645 | R37: 3110 | S37: 2776 | T37: 2524 | U37: 2258 | V37: 2084 | W37: 1645
A38: 46 | C38: 3169 | D38: 2829 | E38: 2572 | F38: 2301 | G38: 2123 | H38: 1676 | J38: 3169 | K38: 2829 | L38: 2572 | M38: 2301 | N38: 2123 | O38: 1676 | R38: 3169 | S38: 2829 | T38: 2572 | U38: 2301 | V38: 2123 | W38: 1676
A39: 47 | C39: 3229 | D39: 2882 | E39: 2621 | F39: 2344 | G39: 2163 | H39: 1707 | J39: 3229 | K39: 2882 | L39: 2621 | M39: 2344 | N39: 2163 | O39: 1707 | R39: 3229 | S39: 2882 | T39: 2621 | U39: 2344 | V39: 2163 | W39: 1707
A40: 48 | C40: 3289 | D40: 2935 | E40: 2669 | F40: 2387 | G40: 2204 | H40: 1739 | J40: 3289 | K40: 2935 | L40: 2669 | M40: 2387 | N40: 2204 | O40: 1739 | R40: 3289 | S40: 2935 | T40: 2669 | U40: 2387 | V40: 2204 | W40: 1739
A41: 49 | C41: 3348 | D41: 2988 | E41: 2717 | F41: 2430 | G41: 2243 | H41: 1770 | J41: 3348 | K41: 2988 | L41: 2717 | M41: 2430 | N41: 2243 | O41: 1770 | R41: 3348 | S41: 2988 | T41: 2717 | U41: 2430 | V41: 2243 | W41: 1770
A42: 50 | C42: 3408 | D42: 3041 | E42: 2765 | F42: 2474 | G42: 2283 | H42: 1801 | J42: 3408 | K42: 3041 | L42: 2765 | M42: 2474 | N42: 2283 | O42: 1801 | R42: 3408 | S42: 3041 | T42: 2765 | U42: 2474 | V42: 2283 | W42: 1801
A43: 51 | C43: =R43 -> 3532 | D43: =S43 -> 3152 | E43: =T43 -> 2866 | F43: =U43 -> 2564 | G43: 2366 | H43: 1868 | J43: 3532 | K43: 3152 | L43: 2866 | M43: 2564 | N43: 2366 | O43: 1868 | R43: 3532 | S43: 3152 | T43: 2866 | U43: 2564 | V43: 2366 | W43: 1868
A44: 52 | C44: 3656 | D44: 3263 | E44: 2967 | F44: 2654 | G44: 2450 | H44: 1933 | J44: 3656 | K44: 3263 | L44: 2967 | M44: 2654 | N44: 2450 | O44: 1933 | R44: 3656 | S44: 3263 | T44: 2967 | U44: 2654 | V44: 2450 | W44: 1933
A45: 53 | C45: 3781 | D45: 3374 | E45: 3068 | F45: 2745 | G45: 2533 | H45: 1999 | J45: 3781 | K45: 3374 | L45: 3068 | M45: 2745 | N45: 2533 | O45: 1999 | R45: 3781 | S45: 3374 | T45: 3068 | U45: 2745 | V45: 2533 | W45: 1999
A46: 54 | C46: 3905 | D46: 3486 | E46: 3169 | F46: 2835 | G46: 2617 | H46: 2065 | J46: 3905 | K46: 3486 | L46: 3169 | M46: 2835 | N46: 2617 | O46: 2065 | R46: 3905 | S46: 3486 | T46: 3169 | U46: 2835 | V46: 2617 | W46: 2065
A47: 55 | C47: 4030 | D47: 3597 | E47: 3270 | F47: 2925 | G47: 2700 | H47: 2131 | J47: 4030 | K47: 3597 | L47: 3270 | M47: 2925 | N47: 2700 | O47: 2131 | R47: 4030 | S47: 3597 | T47: 3270 | U47: 2925 | V47: 2700 | W47: 2131
A48: 56 | C48: 4074 | D48: 3636 | E48: 3306 | F48: 2958 | G48: 2730 | H48: 2154 | J48: 4074 | K48: 3636 | L48: 3306 | M48: 2958 | N48: 2730 | O48: 2154 | R48: 4074 | S48: 3636 | T48: 3306 | U48: 2958 | V48: 2730 | W48: 2154
A49: 57 | C49: 4119 | D49: 3676 | E49: 3342 | F49: 2990 | G49: 2759 | H49: 2178 | J49: 4119 | K49: 3676 | L49: 3342 | M49: 2990 | N49: 2759 | O49: 2178 | R49: 4119 | S49: 3676 | T49: 3342 | U49: 2990 | V49: 2759 | W49: 2178
A50: 58 | C50: 4163 | D50: 3716 | E50: 3379 | F50: 3022 | G50: 2789 | H50: 2201 | J50: 4163 | K50: 3716 | L50: 3379 | M50: 3022 | N50: 2789 | O50: 2201 | R50: 4163 | S50: 3716 | T50: 3379 | U50: 3022 | V50: 2789 | W50: 2201
A51: 59 | C51: 4208 | D51: 3755 | E51: 3414 | F51: 3055 | G51: 2819 | H51: 2225 | J51: 4208 | K51: 3755 | L51: 3414 | M51: 3055 | N51: 2819 | O51: 2225 | R51: 4208 | S51: 3755 | T51: 3414 | U51: 3055 | V51: 2819 | W51: 2225
A52: 60 | C52: 4251 | D52: 3795 | E52: 3450 | F52: 3087 | G52: 2849 | H52: 2249 | J52: 4251 | K52: 3795 | L52: 3450 | M52: 3087 | N52: 2849 | O52: 2249 | R52: 4251 | S52: 3795 | T52: 3450 | U52: 3087 | V52: 2849 | W52: 2249
A53: 61 | C53: 4790 | D53: 4275 | E53: 3887 | F53: 3477 | G53: 3209 | H53: 2532 | J53: 4790 | K53: 4275 | L53: 3887 | M53: 3477 | N53: 3209 | O53: 2532 | R53: 4790 | S53: 4275 | T53: 3887 | U53: 3477 | V53: 3209 | W53: 2532
A54: 62 | C54: 5327 | D54: 4755 | E54: 4323 | F54: 3867 | G54: 3569 | H54: 2817 | J54: 5327 | K54: 4755 | L54: 4323 | M54: 3867 | N54: 3569 | O54: 2817 | R54: 5327 | S54: 4755 | T54: 4323 | U54: 3867 | V54: 3569 | W54: 2817
A55: 63 | C55: 5866 | D55: 5235 | E55: 4760 | F55: 4258 | G55: 3930 | H55: 3101 | J55: 5866 | K55: 5235 | L55: 4760 | M55: 4258 | N55: 3930 | O55: 3101 | R55: 5866 | S55: 5235 | T55: 4760 | U55: 4258 | V55: 3930 | W55: 3101
A56: 64 | C56: 6405 | D56: 5716 | E56: 5197 | F56: 4650 | G56: 4291 | H56: 3386 | J56: 6405 | K56: 5716 | L56: 5197 | M56: 4650 | N56: 4291 | O56: 3386 | R56: 6405 | S56: 5716 | T56: 5197 | U56: 4650 | V56: 4291 | W56: 3386
A57: 65 | C57: 6430 | D57: 5739 | E57: 5218 | F57: 4668 | G57: 4308 | H57: 3400 | J57: 6430 | K57: 5739 | L57: 5218 | M57: 4668 | N57: 4308 | O57: 3400 | R57: 6430 | S57: 5739 | T57: 5218 | U57: 4668 | V57: 4308 | W57: 3400
A58: 66 | C58: 6457 | D58: 5762 | E58: 5240 | F58: 4688 | G58: 4325 | H58: 3414 | J58: 6457 | K58: 5762 | L58: 5240 | M58: 4688 | N58: 4325 | O58: 3414 | R58: 6457 | S58: 5762 | T58: 5240 | U58: 4688 | V58: 4325 | W58: 3414
A59: 67 | C59: 7178 | D59: 6406 | E59: 5825 | F59: 5210 | G59: 4808 | H59: 3795 | J59: 7178 | K59: 6406 | L59: 5825 | M59: 5210 | N59: 4808 | O59: 3795 | R59: 7178 | S59: 6406 | T59: 5825 | U59: 5210 | V59: 4808 | W59: 3795
A60: 68 | C60: 7902 | D60: 7052 | E60: 6412 | F60: 5736 | G60: 5294 | H60: 4178 | J60: 7902 | K60: 7052 | L60: 6412 | M60: 5736 | N60: 5294 | O60: 4178 | R60: 7902 | S60: 7052 | T60: 6412 | U60: 5736 | V60: 5294 | W60: 4178
A61: 69 | C61: 8264 | D61: 7375 | E61: 6706 | F61: 5999 | G61: 5536 | H61: 4368 | J61: 8264 | K61: 7375 | L61: 6706 | M61: 5999 | N61: 5536 | O61: 4368 | R61: 8264 | S61: 7375 | T61: 6706 | U61: 5999 | V61: 5536 | W61: 4368
A62: 70 | C62: 8322 | D62: 7427 | E62: 6753 | F62: 6041 | G62: 5575 | H62: 4399 | J62: 8322 | K62: 7427 | L62: 6753 | M62: 6041 | N62: 5575 | O62: 4399 | R62: 8322 | S62: 7427 | T62: 6753 | U62: 6041 | V62: 5575 | W62: 4399
A63: 71 | C63: 9370 | D63: 8362 | E63: 7604 | F63: 6802 | G63: 6277 | H63: 4954 | J63: 9370 | K63: 8362 | L63: 7604 | M63: 6802 | N63: 6277 | O63: 4954 | R63: 9370 | S63: 8362 | T63: 7604 | U63: 6802 | V63: 6277 | W63: 4954
A64: 72 | C64: 10415 | D64: 9295 | E64: 8453 | F64: 7560 | G64: 6978 | H64: 5507 | J64: 10415 | K64: 9295 | L64: 8453 | M64: 7560 | N64: 6978 | O64: 5507 | R64: 10415 | S64: 9295 | T64: 8453 | U64: 7560 | V64: 6978 | W64: 5507
A65: 73 | C65: 11463 | D65: 10230 | E65: 9301 | F65: 8321 | G65: 7679 | H65: 6060 | J65: 11463 | K65: 10230 | L65: 9301 | M65: 8321 | N65: 7679 | O65: 6060 | R65: 11463 | S65: 10230 | T65: 9301 | U65: 8321 | V65: 7679 | W65: 6060
A66: 74 | C66: 12510 | D66: 11166 | E66: 10152 | F66: 9082 | G66: 8381 | H66: 6614 | J66: 12510 | K66: 11166 | L66: 10152 | M66: 9082 | N66: 8381 | O66: 6614 | R66: 12510 | S66: 11166 | T66: 10152 | U66: 9082 | V66: 8381 | W66: 6614
A67: 75 | C67: 13669 | D67: 12199 | E67: 11092 | F67: 9922 | G67: 9158 | H67: 7226 | J67: 13669 | K67: 12199 | L67: 11092 | M67: 9922 | N67: 9158 | O67: 7226 | R67: 13669 | S67: 12199 | T67: 11092 | U67: 9922 | V67: 9158 | W67: 7226
A68: 76 | C68: 13669 | D68: 12199 | E68: 11092 | F68: 9922 | G68: 9158 | H68: 7226 | J68: 13669 | K68: 12199 | L68: 11092 | M68: 9922 | N68: 9158 | O68: 7226 | R68: 13669 | S68: 12199 | T68: 11092 | U68: 9922 | V68: 9158 | W68: 7226
A69: 77 | C69: 13669 | D69: 12199 | E69: 11092 | F69: 9922 | G69: 9158 | H69: 7226 | J69: 13669 | K69: 12199 | L69: 11092 | M69: 9922 | N69: 9158 | O69: 7226 | R69: 13669 | S69: 12199 | T69: 11092 | U69: 9922 | V69: 9158 | W69: 7226
A70: 78 | C70: 13669 | D70: 12199 | E70: 11092 | F70: 9922 | G70: 9158 | H70: 7226 | J70: 13669 | K70: 12199 | L70: 11092 | M70: 9922 | N70: 9158 | O70: 7226 | R70: 13669 | S70: 12199 | T70: 11092 | U70: 9922 | V70: 9158 | W70: 7226
A71: 79 | C71: 13669 | D71: 12199 | E71: 11092 | F71: 9922 | G71: 9158 | H71: 7226 | J71: 13669 | K71: 12199 | L71: 11092 | M71: 9922 | N71: 9158 | O71: 7226 | R71: 13669 | S71: 12199 | T71: 11092 | U71: 9922 | V71: 9158 | W71: 7226
A72: 80 | C72: 13669 | D72: 12199 | E72: 11092 | F72: 9922 | G72: 9158 | H72: 7226 | J72: 13669 | K72: 12199 | L72: 11092 | M72: 9922 | N72: 9158 | O72: 7226 | R72: 13669 | S72: 12199 | T72: 11092 | U72: 9922 | V72: 9158 | W72: 7226
A73: 81 | C73: 13669 | D73: 12199 | E73: 11092 | F73: 9922 | G73: 9158 | H73: 7226 | J73: 13669 | K73: 12199 | L73: 11092 | M73: 9922 | N73: 9158 | O73: 7226 | R73: 13669 | S73: 12199 | T73: 11092 | U73: 9922 | V73: 9158 | W73: 7226
A74: 82 | C74: 13669 | D74: 12199 | E74: 11092 | F74: 9922 | G74: 9158 | H74: 7226 | J74: 13669 | K74: 12199 | L74: 11092 | M74: 9922 | N74: 9158 | O74: 7226 | R74: 13669 | S74: 12199 | T74: 11092 | U74: 9922 | V74: 9158 | W74: 7226
A75: 83 | C75: 13669 | D75: 12199 | E75: 11092 | F75: 9922 | G75: =V75 -> 9158 | H75: =W75 -> 7226 | J75: 13669 | K75: 12199 | L75: 11092 | M75: 9922 | N75: 9158 | O75: 7226 | R75: =J75*$O$4 -> 13669 | S75: =K75*$O$4 -> 12199 | T75: =L75*$O$4 -> 11092 | U75: =M75*$O$4 -> 9922 | V75: =N75*$O$4 -> 9158 | W75: =O75*$O$4 -> 7226
A76: 84 | B76: o más | C76: 13669 | D76: 12199 | E76: 11092 | F76: 9922 | G76: 9158 | H76: 7226 | J76: 13669 | K76: 12199 | L76: 11092 | M76: 9922 | N76: 9158 | O76: 7226 | R76: 13669 | S76: 12199 | T76: 11092 | U76: 9922 | V76: 9158 | W76: 7226
A77: 1 | B77: Hijo | C77: 772 | D77: 690 | E77: 627 | F77: 561 | G77: 517 | H77: 408 | J77: 772 | K77: 690 | L77: 627 | M77: 561 | N77: 517 | O77: 408 | R77: 772 | S77: 690 | T77: 627 | U77: 561 | V77: 517 | W77: 408
A78: 2 | B78: Hijos | C78: 1265 | D78: 1129 | E78: 1026 | F78: 918 | G78: 848 | H78: 669 | J78: 1265 | K78: 1129 | L78: 1026 | M78: 918 | N78: 848 | O78: 669 | R78: 1265 | S78: 1129 | T78: 1026 | U78: 918 | V78: 848 | W78: 669
A79: 3 | B79: Hijos o más | C79: 1848 | D79: 1650 | E79: 1500 | F79: 1342 | G79: 1238 | H79: 977 | J79: 1848 | K79: 1650 | L79: 1500 | M79: 1342 | N79: 1238 | O79: 977 | R79: 1848 | S79: 1650 | T79: 1500 | U79: 1342 | V79: 1238 | W79: 977
A82: BUPA GLOBAL PREMIER - MENSUALES
A83: EDAD | C83: 500 | D83: 1000 | E83: 1000 | F83: 1000 | G83: 10000 | H83: 20000
A84: 18 | C84: =C10*$K$2 -> 155.12 | D84: =D10*$K$2 -> 138.4133333 | E84: 125.8133333 | F84: 112.6533333 | G84: 103.88 | H84: 82.04
A85: 19 | C85: =C11*$K$2 -> 157.64 | D85: 140.6533333 | E85: 127.8666667 | F85: 114.4266667 | G85: 105.56 | H85: 83.34666667
A86: 20 | C86: =C12*$K$2 -> 160.0666667 | D86: 142.8933333 | E86: 129.92 | F86: 116.2933333 | G86: 107.3333333 | H86: 84.65333333
A87: 21 | C87: =C13*$K$2 -> 162.5866667 | D87: 145.1333333 | E87: 131.9733333 | F87: 118.0666667 | G87: 108.92 | H87: 86.05333333
A88: 22 | C88: =C14*$K$2 -> 165.0133333 | D88: 147.28 | E88: 134.0266667 | F88: 119.9333333 | G88: 110.6 | H88: 87.36
A89: 23 | C89: =C15*$K$2 -> 167.6266667 | D89: 149.52 | E89: 135.9866667 | F89: 121.7066667 | G89: 112.28 | H89: 88.66666667
A90: 24 | C90: =C16*$K$2 -> 170.0533333 | D90: 151.76 | E90: 138.04 | F90: 123.48 | G90: 113.96 | H90: 89.88
A91: 25 | C91: =C17*$K$2 -> 172.5733333 | D91: 154.0933333 | E91: 140.0933333 | F91: 125.3466667 | G91: 115.5466667 | H91: 91.18666667
A92: 26 | C92: =C18*$K$2 -> 178.08 | D92: 158.9466667 | E92: 144.48 | F92: 129.2666667 | G92: 119.28 | H92: 94.08
A93: 27 | C93: =C19*$K$2 -> 183.4933333 | D93: 163.7066667 | E93: 148.96 | F93: 133.1866667 | G93: 123.0133333 | H93: 96.97333333
A94: 28 | C94: =C20*$K$2 -> 189 | D94: 168.6533333 | E94: 153.3466667 | F94: 137.2 | G94: 126.56 | H94: 99.86666667
A95: 29 | C95: =C21*$K$2 -> 194.4133333 | D95: 173.5066667 | E95: 157.8266667 | F95: 141.12 | G95: 130.2933333 | H95: 102.8533333
A96: 30 | C96: =C22*$K$2 -> 199.8266667 | D96: 178.36 | E96: 162.2133333 | F96: 145.1333333 | G96: 133.9333333 | H96: 105.7466667
A97: 31 | C97: =C23*$K$2 -> 204.2133333 | D97: 182.1866667 | E97: 165.6666667 | F97: 148.2133333 | G97: 136.8266667 | H97: 107.9866667
A98: 32 | C98: =C24*$K$2 -> 208.5066667 | D98: 186.0133333 | E98: 169.2133333 | F98: 151.3866667 | G98: 139.6266667 | H98: 110.32
A99: 33 | C99: =C25*$K$2 -> 212.8 | D99: 189.84 | E99: 172.76 | F99: 154.4666667 | G99: 142.52 | H99: 112.4666667
A100: 34 | C100: =C26*$K$2 -> 217 | D100: 193.6666667 | E100: 176.12 | F100: 157.64 | G100: 145.4133333 | H100: 114.8
A101: 35 | C101: =C27*$K$2 -> 221.2933333 | D101: 197.4933333 | E101: 179.6666667 | F101: 160.72 | G101: 148.3066667 | H101: 117.1333333
A102: 36 | C102: =C28*$K$2 -> 227.08 | D102: 202.6266667 | E102: 184.3333333 | F102: 164.8266667 | G102: 152.1333333 | H102: 120.12
A103: 37 | C103: =C29*$K$2 -> 232.7733333 | D103: 207.76 | E103: 188.9066667 | F103: 169.0266667 | G103: 156.0533333 | H103: 123.1066667
A104: 38 | C104: =C30*$K$2 -> 238.6533333 | D104: 212.8933333 | E104: 193.5733333 | F104: 173.2266667 | G104: 159.7866667 | H104: 126.1866667
A105: 39 | C105: =C31*$K$2 -> 244.3466667 | D105: 218.12 | E105: 198.24 | F105: 177.3333333 | G105: 163.7066667 | H105: 129.1733333
A106: 40 | C106: =C32*$K$2 -> 250.04 | D106: 223.16 | E106: 203 | F106: 181.44 | G106: 167.5333333 | H106: 132.16
A107: 41 | C107: =C33*$K$2 -> 258.0666667 | D107: 230.3466667 | E107: 209.44 | F107: 187.32 | G107: 172.9466667 | H107: 136.4533333
A108: 42 | C108: =C34*$K$2 -> 266.1866667 | D108: 237.5333333 | E108: 215.9733333 | F108: 193.2 | G108: 178.2666667 | H108: 140.7466667
A109: 43 | C109: =C35*$K$2 -> 274.2133333 | D109: 244.72 | E109: 222.5066667 | F109: 198.9866667 | G109: 183.68 | H109: 144.9466667
A110: 44 | C110: =C36*$K$2 -> 282.24 | D110: 251.8133333 | E110: 229.04 | F110: 204.8666667 | G110: 189.0933333 | H110: 149.24
A111: 45 | C111: =C37*$K$2 -> 290.2666667 | D111: 259.0933333 | E111: 235.5733333 | F111: 210.7466667 | G111: 194.5066667 | H111: 153.5333333
A112: 46 | C112: =C38*$K$2 -> 295.7733333 | D112: 264.04 | E112: 240.0533333 | F112: 214.76 | G112: 198.1466667 | H112: 156.4266667
A113: 47 | C113: =C39*$K$2 -> 301.3733333 | D113: 268.9866667 | E113: 244.6266667 | F113: 218.7733333 | G113: 201.88 | H113: 159.32
A114: 48 | C114: =C40*$K$2 -> 306.9733333 | D114: 273.9333333 | E114: 249.1066667 | F114: 222.7866667 | G114: 205.7066667 | H114: 162.3066667
A115: 49 | C115: =C41*$K$2 -> 312.48 | D115: 278.88 | E115: 253.5866667 | F115: 226.8 | G115: 209.3466667 | H115: 165.2
A116: 50 | C116: =C42*$K$2 -> 318.08 | D116: 283.8266667 | E116: 258.0666667 | F116: 230.9066667 | G116: 213.08 | H116: 168.0933333
A117: 51 | C117: =C43*$K$2 -> 329.6533333 | D117: 294.1866667 | E117: 267.4933333 | F117: 239.3066667 | G117: 220.8266667 | H117: 174.3466667
A118: 52 | C118: =C44*$K$2 -> 341.2266667 | D118: 304.5466667 | E118: 276.92 | F118: 247.7066667 | G118: 228.6666667 | H118: 180.4133333
A119: 53 | C119: =C45*$K$2 -> 352.8933333 | D119: 314.9066667 | E119: 286.3466667 | F119: 256.2 | G119: 236.4133333 | H119: 186.5733333
A120: 54 | C120: =C46*$K$2 -> 364.4666667 | D120: 325.36 | E120: 295.7733333 | F120: 264.6 | G120: 244.2533333 | H120: 192.7333333
A121: 55 | C121: =C47*$K$2 -> 376.1333333 | D121: 335.72 | E121: 305.2 | F121: 273 | G121: 252 | H121: 198.8933333
A122: 56 | C122: =C48*$K$2 -> 380.24 | D122: 339.36 | E122: 308.56 | F122: 276.08 | G122: 254.8 | H122: 201.04
A123: 57 | C123: =C49*$K$2 -> 384.44 | D123: 343.0933333 | E123: 311.92 | F123: 279.0666667 | G123: 257.5066667 | H123: 203.28
A124: 58 | C124: =C50*$K$2 -> 388.5466667 | D124: 346.8266667 | E124: 315.3733333 | F124: 282.0533333 | G124: 260.3066667 | H124: 205.4266667
A125: 59 | C125: =C51*$K$2 -> 392.7466667 | D125: 350.4666667 | E125: 318.64 | F125: 285.1333333 | G125: 263.1066667 | H125: 207.6666667
A126: 60 | C126: =C52*$K$2 -> 396.76 | D126: 354.2 | E126: 322 | F126: 288.12 | G126: 265.9066667 | H126: 209.9066667
A127: 61 | C127: =C53*$K$2 -> 447.0666667 | D127: 399 | E127: 362.7866667 | F127: 324.52 | G127: 299.5066667 | H127: 236.32
A128: 62 | C128: =C54*$K$2 -> 497.1866667 | D128: 443.8 | E128: 403.48 | F128: 360.92 | G128: 333.1066667 | H128: 262.92
A129: 63 | C129: =C55*$K$2 -> 547.4933333 | D129: 488.6 | E129: 444.2666667 | F129: 397.4133333 | G129: 366.8 | H129: 289.4266667
A130: 64 | C130: =C56*$K$2 -> 597.8 | D130: 533.4933333 | E130: 485.0533333 | F130: 434 | G130: 400.4933333 | H130: 316.0266667
A131: 65 | C131: =C57*$K$2 -> 600.1333333 | D131: 535.64 | E131: 487.0133333 | F131: 435.68 | G131: 402.08 | H131: 317.3333333
A132: 66 | C132: =C58*$K$2 -> 602.6533333 | D132: 537.7866667 | E132: 489.0666667 | F132: 437.5466667 | G132: 403.6666667 | H132: 318.64
A133: 67 | C133: =C59*$K$2 -> 669.9466667 | D133: 597.8933333 | E133: 543.6666667 | F133: 486.2666667 | G133: 448.7466667 | H133: 354.2
A134: 68 | C134: =C60*$K$2 -> 737.52 | D134: 658.1866667 | E134: 598.4533333 | F134: 535.36 | G134: 494.1066667 | H134: 389.9466667
A135: 69 | C135: =C61*$K$2 -> 771.3066667 | D135: 688.3333333 | E135: 625.8933333 | F135: 559.9066667 | G135: 516.6933333 | H135: 407.68
A136: 70 | C136: =C62*$K$2 -> 776.72 | D136: 693.1866667 | E136: 630.28 | F136: 563.8266667 | G136: 520.3333333 | H136: 410.5733333
A137: 71 | C137: =C63*$K$2 -> 874.5333333 | D137: 780.4533333 | E137: 709.7066667 | F137: 634.8533333 | G137: 585.8533333 | H137: 462.3733333
A138: 72 | C138: =C64*$K$2 -> 972.0666667 | D138: 867.5333333 | E138: 788.9466667 | F138: 705.6 | G138: 651.28 | H138: 513.9866667
A139: 73 | C139: =C65*$K$2 -> 1069.88 | D139: 954.8 | E139: 868.0933333 | F139: 776.6266667 | G139: 716.7066667 | H139: 565.6
A140: 74 | C140: =C66*$K$2 -> 1167.6 | D140: 1042.16 | E140: 947.52 | F140: 847.6533333 | G140: 782.2266667 | H140: 617.3066667
A141: 75 | C141: =C67*$K$2 -> 1275.773333 | D141: 1138.573333 | E141: 1035.253333 | F141: 926.0533333 | G141: 854.7466667 | H141: 674.4266667
A142: 76 | C142: =C68*$K$2 -> 1275.773333 | D142: 1138.573333 | E142: 1035.253333 | F142: 926.0533333 | G142: 854.7466667 | H142: 674.4266667
A143: 77 | C143: =C69*$K$2 -> 1275.773333 | D143: 1138.573333 | E143: 1035.253333 | F143: 926.0533333 | G143: 854.7466667 | H143: 674.4266667
A144: 78 | C144: =C70*$K$2 -> 1275.773333 | D144: 1138.573333 | E144: 1035.253333 | F144: 926.0533333 | G144: 854.7466667 | H144: 674.4266667
A145: 79 | C145: =C71*$K$2 -> 1275.773333 | D145: 1138.573333 | E145: 1035.253333 | F145: 926.0533333 | G145: 854.7466667 | H145: 674.4266667
A146: 80 | C146: =C72*$K$2 -> 1275.773333 | D146: 1138.573333 | E146: 1035.253333 | F146: 926.0533333 | G146: 854.7466667 | H146: 674.4266667
A147: 81 | C147: =C73*$K$2 -> 1275.773333 | D147: 1138.573333 | E147: 1035.253333 | F147: 926.0533333 | G147: 854.7466667 | H147: 674.4266667
A148: 82 | C148: =C74*$K$2 -> 1275.773333 | D148: 1138.573333 | E148: 1035.253333 | F148: 926.0533333 | G148: 854.7466667 | H148: 674.4266667
A149: 83 | C149: =C75*$K$2 -> 1275.773333 | D149: 1138.573333 | E149: 1035.253333 | F149: 926.0533333 | G149: 854.7466667 | H149: 674.4266667
A150: 84 | B150: o más | C150: =C76*$K$2 -> 1275.773333 | D150: 1138.573333 | E150: 1035.253333 | F150: 926.0533333 | G150: 854.7466667 | H150: 674.4266667
A151: 1 | B151: Hijo | C151: =C77*$K$2 -> 72.05333333 | D151: 64.4 | E151: 58.52 | F151: 52.36 | G151: 48.25333333 | H151: 38.08
A152: 2 | B152: Hijos | C152: =C78*$K$2 -> 118.0666667 | D152: 105.3733333 | E152: 95.76 | F152: 85.68 | G152: 79.14666667 | H152: 62.44
A153: 3 | B153: Hijos o más | C153: =C79*$K$2 -> 172.48 | D153: 154 | E153: 140 | F153: 125.2533333 | G153: 115.5466667 | H153: 91.18666667
A156: TARIFAS SEMESTRALES
A157: EDAD | C157: 500 | D157: 1000 | E157: 1000 | F157: 1000 | G157: 10000 | H157: 20000
A158: 18 | C158: =C10*$K$4 -> 880.86 | D158: =D10*$K$4 -> 785.99 | E158: =E10*$K$4 -> 714.44 | F158: =F10*$K$4 -> 639.71 | G158: =G10*$K$4 -> 589.89 | H158: 465.87
A159: 19 | C159: =C11*$K$4 -> 895.17 | D159: 798.71 | E159: 726.1 | F159: =F11*$K$4 -> 649.78 | G159: 599.43 | H159: 473.29
A160: 20 | C160: 908.95 | D160: 811.43 | E160: 737.76 | F160: =F12*$K$4 -> 660.38 | G160: 609.5 | H160: 480.71
A161: 21 | C161: 923.26 | D161: 824.15 | E161: 749.42 | F161: =F13*$K$4 -> 670.45 | G161: 618.51 | H161: 488.66
A162: 22 | C162: 937.04 | D162: 836.34 | E162: 761.08 | F162: =F14*$K$4 -> 681.05 | G162: 628.05 | H162: 496.08
A163: 23 | C163: 951.88 | D163: 849.06 | E163: 772.21 | F163: =F15*$K$4 -> 691.12 | G163: 637.59 | H163: 503.5
A164: 24 | C164: 965.66 | D164: 861.78 | E164: 783.87 | F164: =F16*$K$4 -> 701.19 | G164: 647.13 | H164: 510.39
A165: 25 | C165: 979.97 | D165: 875.03 | E165: 795.53 | F165: =F17*$K$4 -> 711.79 | G165: 656.14 | H165: 517.81
A166: 26 | C166: 1011.24 | D166: 902.59 | E166: 820.44 | F166: =F18*$K$4 -> 734.05 | G166: 677.34 | H166: 534.24
A167: 27 | C167: 1041.98 | D167: 929.62 | E167: 845.88 | F167: =F19*$K$4 -> 756.31 | G167: 698.54 | H167: 550.67
A168: 28 | C168: 1073.25 | D168: 957.71 | E168: 870.79 | F168: =F20*$K$4 -> 779.1 | G168: 718.68 | H168: 567.1
A169: 29 | C169: 1103.99 | D169: 985.27 | E169: 896.23 | F169: =F21*$K$4 -> 801.36 | G169: 739.88 | H169: 584.06
A170: 30 | C170: 1134.73 | D170: 1012.83 | E170: 921.14 | F170: =F22*$K$4 -> 824.15 | G170: 760.55 | H170: 600.49
A171: 31 | C171: 1159.64 | D171: 1034.56 | E171: 940.75 | F171: =F23*$K$4 -> 841.64 | G171: 776.98 | H171: 613.21
A172: 32 | C172: 1184.02 | D172: 1056.29 | E172: 960.89 | F172: =F24*$K$4 -> 859.66 | G172: 792.88 | H172: 626.46
A173: 33 | C173: 1208.4 | D173: 1078.02 | E173: 981.03 | F173: =F25*$K$4 -> 877.15 | G173: 809.31 | H173: 638.65
A174: 34 | C174: 1232.25 | D174: 1099.75 | E174: 1000.11 | F174: =F26*$K$4 -> 895.17 | G174: 825.74 | H174: 651.9
A175: 35 | C175: 1256.63 | D175: 1121.48 | E175: 1020.25 | F175: =F27*$K$4 -> 912.66 | G175: 842.17 | H175: 665.15
A176: 36 | C176: 1289.49 | D176: 1150.63 | E176: 1046.75 | F176: =F28*$K$4 -> 935.98 | G176: 863.9 | H176: 682.11
A177: 37 | C177: 1321.82 | D177: 1179.78 | E177: 1072.72 | F177: =F29*$K$4 -> 959.83 | G177: 886.16 | H177: 699.07
A178: 38 | C178: 1355.21 | D178: 1208.93 | E178: 1099.22 | F178: =F30*$K$4 -> 983.68 | G178: 907.36 | H178: 716.56
A179: 39 | C179: =C31*$K$4 -> 1387.54 | D179: 1238.61 | E179: 1125.72 | F179: =F31*$K$4 -> 1007 | G179: 929.62 | H179: 733.52
A180: 40 | C180: 1419.87 | D180: 1267.23 | E180: 1152.75 | F180: =F32*$K$4 -> 1030.32 | G180: 951.35 | H180: 750.48
A181: 41 | C181: 1465.45 | D181: 1308.04 | E181: 1189.32 | F181: =F33*$K$4 -> 1063.71 | G181: 982.09 | H181: 774.86
A182: 42 | C182: 1511.56 | D182: 1348.85 | E182: 1226.42 | F182: =F34*$K$4 -> 1097.1 | G182: 1012.3 | H182: 799.24
A183: 43 | C183: 1557.14 | D183: 1389.66 | E183: 1263.52 | F183: =F35*$K$4 -> 1129.96 | G183: 1043.04 | H183: 823.09
A184: 44 | C184: 1602.72 | D184: 1429.94 | E184: 1300.62 | F184: =F36*$K$4 -> 1163.35 | G184: 1073.78 | H184: 847.47
A185: 45 | C185: 1648.3 | D185: 1471.28 | E185: 1337.72 | F185: =F37*$K$4 -> 1196.74 | G185: 1104.52 | H185: 871.85
A186: 46 | C186: 1679.57 | D186: 1499.37 | E186: 1363.16 | F186: =F38*$K$4 -> 1219.53 | G186: 1125.19 | H186: 888.28
A187: 47 | C187: 1711.37 | D187: 1527.46 | E187: 1389.13 | F187: =F39*$K$4 -> 1242.32 | G187: 1146.39 | H187: 904.71
A188: 48 | C188: 1743.17 | D188: 1555.55 | E188: 1414.57 | F188: =F40*$K$4 -> 1265.11 | G188: 1168.12 | H188: 921.67
A189: 49 | C189: 1774.44 | D189: 1583.64 | E189: 1440.01 | F189: =F41*$K$4 -> 1287.9 | G189: 1188.79 | H189: 938.1
A190: 50 | C190: 1806.24 | D190: 1611.73 | E190: 1465.45 | F190: =F42*$K$4 -> 1311.22 | G190: 1209.99 | H190: 954.53
A191: 51 | C191: 1871.96 | D191: 1670.56 | E191: 1518.98 | F191: =F43*$K$4 -> 1358.92 | G191: 1253.98 | H191: 990.04
A192: 52 | C192: 1937.68 | D192: 1729.39 | E192: 1572.51 | F192: =F44*$K$4 -> 1406.62 | G192: 1298.5 | H192: 1024.49
A193: 53 | C193: 2003.93 | D193: 1788.22 | E193: 1626.04 | F193: =F45*$K$4 -> 1454.85 | G193: 1342.49 | H193: 1059.47
A194: 54 | C194: 2069.65 | D194: 1847.58 | E194: 1679.57 | F194: =F46*$K$4 -> 1502.55 | G194: 1387.01 | H194: 1094.45
A195: 55 | C195: 2135.9 | D195: 1906.41 | E195: 1733.1 | F195: =F47*$K$4 -> 1550.25 | G195: 1431 | H195: 1129.43
A196: 56 | C196: 2159.22 | D196: 1927.08 | E196: 1752.18 | F196: =F48*$K$4 -> 1567.74 | G196: 1446.9 | H196: 1141.62
A197: 57 | C197: 2183.07 | D197: 1948.28 | E197: 1771.26 | F197: =F49*$K$4 -> 1584.7 | G197: 1462.27 | H197: 1154.34
A198: 58 | C198: 2206.39 | D198: 1969.48 | E198: 1790.87 | F198: =F50*$K$4 -> 1601.66 | G198: 1478.17 | H198: 1166.53
A199: 59 | C199: =C51*$K$4 -> 2230.24 | D199: 1990.15 | E199: 1809.42 | F199: =F51*$K$4 -> 1619.15 | G199: 1494.07 | H199: 1179.25
A200: 60 | C200: 2253.03 | D200: 2011.35 | E200: 1828.5 | F200: =F52*$K$4 -> 1636.11 | G200: 1509.97 | H200: 1191.97
A201: 61 | C201: 2538.7 | D201: 2265.75 | E201: 2060.11 | F201: =F53*$K$4 -> 1842.81 | G201: 1700.77 | H201: 1341.96
A202: 62 | C202: 2823.31 | D202: 2520.15 | E202: 2291.19 | F202: =F54*$K$4 -> 2049.51 | G202: 1891.57 | H202: 1493.01
A203: 63 | C203: 3108.98 | D203: 2774.55 | E203: 2522.8 | F203: =F55*$K$4 -> 2256.74 | G203: 2082.9 | H203: 1643.53
A204: 64 | C204: 3394.65 | D204: 3029.48 | E204: 2754.41 | F204: =F56*$K$4 -> 2464.5 | G204: 2274.23 | H204: 1794.58
A205: 65 | C205: 3407.9 | D205: 3041.67 | E205: 2765.54 | F205: =F57*$K$4 -> 2474.04 | G205: 2283.24 | H205: 1802
A206: 66 | C206: 3422.21 | D206: 3053.86 | E206: 2777.2 | F206: =F58*$K$4 -> 2484.64 | G206: 2292.25 | H206: 1809.42
A207: 67 | C207: 3804.34 | D207: 3395.18 | E207: 3087.25 | F207: =F59*$K$4 -> 2761.3 | G207: 2548.24 | H207: 2011.35
... 92 more rows
